Workbook

Sheet Disclaimer
B2: Disclaimer
C5: This financial model (“Model”) has been prepared by Infratil Limited (NZ company number 597366, NZX:IFT; ASX:IFT) (“Infratil”). Each person who accesses this Model is referred to in this disclaimer as “Recipient”. By accessing this Model, each Recipient agrees to be bound at all times by the terms of this disclaimer set out below. The Model has been prepared in good faith for information purposes only and provided on a non-reliance basis. It is not intended to be and should not be relied upon as advice to investors or potential investors and does not take into account the investment objectives, financial situation or needs of any particular investor. These should be considered, with or without professional advice, before taking any action in respect of an investment in Infratil. The information in this Model does not purport to be complete nor does it contain or contemplate all information which an investor or a prospective investor may require or consider necessary in evaluating a decision regarding an investment in Infratil. This Model is necessarily high-level and does not encompass full details of the Management Agreement. Recipients are strongly advised to refer to the relevant provisions of the Management Agreement for full details of the how the management and incentive fees are now calculated and paid. No person should rely on the contents of this Model as a complete and accurate summary, and any reliance on this model is at the Recipient’s own discretion and risk. The Model does not constitute any financial, tax, legal, investment or other advice, or any recommendation, offer or invitation to acquire or dispose of Infratil’s securities, and has been prepared without taking into account the objectives, financial situation, and needs of or implications for any Recipient. Recipients must not place undue reliance on the Model or its contents and must conduct their own investigation and analysis of (i) Infratil, (ii) any Infratil portfolio company that is the subject of this Model, including its respective assets and business (“Portfolio Company”), and (iii) the information contained in the Model. Past performance information provided in the Model may not be a reliable indication of future performance. Furthermore, information about the financial and forecast performance of Infratil and any Portfolio Company may be presented in the Model in a different way from that which appears in the audited or unaudited financial statements from which it is derived. This may (but need not) result from historical financial information being “adjusted” for the purposes of the Model. The Model contains certain forward-looking information relating to Infratil and any Portfolio Company, such as quantitative and qualitative forecasts, projections, estimates, statements and opinions concerning the anticipated future performance and financial condition of Infratil and/or any Portfolio Company. None of these forecasts, projections, estimates, statements and opinions are, or will be, guarantees, representations or warranties, express or implied, as to future matters or circumstances. Forward-looking information is inherently uncertain and subject to contingencies outside of Infratil’s or the Portfolio Company’s control, and which may cause the actual results or performance of Infratil or the Portfolio Company to be materially different from any results or performance expressed or implied by such forward-looking statement. Infratil gives no representation, warranty or assurance that actual outcomes or performance will not materially differ from the forward-looking statements expressed or implied. Information included in this Model, including any forward-looking information, speaks only as of the date of this Model. Future events or subsequent developments may affect the information in this Model, and, except as required by law, or the rules of any relevant securities exchange or listing authority, Infratil is under no obligation to update, revise, reaffirm or supplement any views or information set out in this Model. To the maximum extent permitted by law, Infratil, the Portfolio Company and their respective affiliates, and each of their respective directors, officers, partners, employees and agents (each a “Relevant Person”) accept no responsibility to inform or notify a Recipient of any matter which may affect any matter referred to in this Model (including, but not limited to, any error or omission which may become apparent after the date of this Model). Without prejudice to the foregoing, if Infratil provides any further information to supplement this Model, whether by way of update or otherwise, to Recipients after the date of this Model, the terms and conditions applying to this Model will apply to such further information. This Model shall not be deemed an indication of the state of affairs of Infratil or any Portfolio Company nor shall it constitute an indication that there has been or will be no change in Infratil or any Portfolio Company since the date of this Model or since any other date at which any information contained herein is expressed to be stated. No representation, warranty or undertaking, express or implied, of any nature is made in relation to the accuracy, completeness or correctness of the information contained in this Model. To the maximum extent permitted by law, no Relevant Person will be liable (whether in tort (including negligence) or otherwise) to any person in relation to this Model.

Sheet Cover
B2: Infratil Illustrative Fees Model
B3: Cover
B5: Introduction to the Model
B7: Scope of this Model This model is a high-level tool and does not capture the full detail of the Management Agreement. Users should refer directly to the Management Agreement for the definitive terms governing how management and incentive fees are calculated and paid. This model calculates the Present value of the Management Agreement as at 31 March 2025. Purpose The purpose of this model is to provide a simplified demonstration of how management fees are calculated under the Management Agreement between Infratil and Morrison Infrastructure Management Limited (“Morrison”). Background Infratil has delegated its day-to-day management responsibilities to Morrison under a Management Agreement. Morrison is compensated through: 1. Annual Management Fees - approximately 0.85% of Infratil’s market capitalisation plus net debt. 2. Incentive Fees - payable only on international investments (those with more than 50% of assets outside New Zealand). These fees are earned when investment performance exceeds a 12% annual return hurdle. The fee is set at 20% of the outperformance. Incentive fees can be earned in three forms: 1. Initial Incentive Fees 2. Annual Incentive Fees 3. Realised Incentive Fees To determine whether incentive fees are payable, independent valuations are undertaken on qualifying international investments. Any Annual Incentive Fee for a financial year is earned and paid in three instalments, with the second and third instalments reduced if the fair value of the relevant asset (including distributions) is lower than cost or fair value at the measurement date. Negative performance in one fee category offsets positive performance in another before fees are paid. Any residual negative balance is carried forward and applied against future years’ performance. Simplifications in this Model For ease of use, the model assumes: 1. a blended management fee rate of 0.85%, 2. all incentive fees follow the methodology used for Annual Incentive Fees; and 3. a annual calculation of incentive and management fees.
B36: Summary | G36: Technical inputs | N36: Legend
B38: Present value of Management fee: | E38: =TEXT(ROUND('Management Fee'!$H$37,1),"$#,###.00;;-") -> $621.00 | H38: Days in year | J38: 365.25 | K38: <Days_yr> | N38: Divider 1 | P38: Divider 1
B39: Present value of Incentive fee: | E39: =TEXT(ROUND('Incentive Fee'!$H$28,1),"$#,###.00;;-") -> $507.50 | H39: Days in week | J39: 7 | K39: <Days_wk>
B40: Total: | E40: =TEXT(ROUND(('Incentive Fee'!$H$28+'Management Fee'!$H$37),1),"$#,###.00;;-") -> $1,128.50 | H40: Quarters in year | J40: 4 | K40: <Quarters_yr> | N40: Divider 2 | P40: Divider 2
B41: PV of Mgmt. agreement $/share: | E41: =TEXT(IFERROR(ROUND(('Incentive Fee'!$H$28+'Management Fee'!$H$37)/'Management Fee'!$H$40,2),Zero),"$#,###.00;;-") -> $1.15 | H41: Months in year | J41: 12 | K41: <Months_yr>
H42: Months in quarter | J42: 3 | K42: <Months_qtr> | N42: Divider 3 | P42: Divider 3
B43: Contents | H43: Hours per day | J43: 24 | K43: <Hrs_day>
H44: Financial year month | J44: 3 | K44: <FY_month> | N44: User Input | P44: User Input
C45: Model Name | H45: Thousands | J45: 1000 | K45: <Thousand>
D46: Infratil Illustrative Fees Model | H46: Millions | J46: 1000000 | K46: <Million> | N46: Table Header | P46: Table Header
H47: Rounding error | J47: 0.05 | K47: <Rounding_error>
C48: Contents>> | H48: Zero | J48: 0 | K48: <Zero> | N48: Explanatory note | P48: Explanatory Note
D49: Incentive fees | H49: One | J49: 1 | K49: <One>
D50: Management fee | H50: Two | J50: 2 | K50: <Two> | N50: Calculation | P50: Calculation
D51: Fees history | H51: Three | J51: 3 | K51: <Three>
H52: Four | J52: 4 | K52: <Four> | N52: Check OK | P52: 0
B53: Helpful Links | H53: Ten | J53: 10 | K53: <Ten>
H54: Twenty | J54: 20 | K54: <Twenty> | N54: Check Not OK | P54: 1
B55: Infratil Management Agreement | H55: Quarter | J55: 0.25 | K55: <Quarter>
H56: Half | J56: 0.5 | K56: <Half> | N56: Modelling Input | P56: Modelling Input
B57: Summary of 2023 Management Agreement changes | H57: One hundred thousand | J57: 100000 | K57: <Hundred_k>
N58: Do not override
B59: Review of fairness of the management agreement | G59: Checks
N60: End of sheet | P60: END OF SHEET
B61: Infratil approach to Independent Valuations | H61: Model status checks
H63: [spare] | K63: 0
H64: [spare] | K64: 0
H65: Model status | K65: =SUM(K62:K64) -> 0

Sheet Management Fee
B2: Illustrative Management Fee Model
L4: Period Start | M4: 2024-04-01 | N4: =M5+1 -> 2025-04-01 | O4: =N5+1 -> 2026-04-01 | P4: 2027-04-01 | Q4: 2028-04-01 | R4: 2029-04-01 | S4: 2030-04-01 | T4: 2031-04-01 | U4: 2032-04-01 | V4: 2033-04-01 | W4: 2034-04-01
L5: Period End | M5: =EOMONTH(M4,Months_Year -1) -> 2025-03-31 | N5: 2026-03-31 | O5: 2027-03-31 | P5: 2028-03-31 | Q5: 2029-03-31 | R5: 2030-03-31 | S5: 2031-03-31 | T5: 2032-03-31 | U5: 2033-03-31 | V5: 2034-03-31 | W5: 2035-03-31
L6: Financial year | M6: =YEAR(M5) -> 2025 | N6: =YEAR(N5) -> 2026 | O6: 2027 | P6: 2028 | Q6: 2029 | R6: 2030 | S6: 2031 | T6: 2032 | U6: 2033 | V6: 2034 | W6: 2035
L7: Period | M7: 1 | N7: =M7+1 -> 2 | O7: =N7+1 -> 3 | P7: 4 | Q7: 5 | R7: 6 | S7: 7 | T7: 8 | U7: 9 | V7: 10 | W7: 11
B9: Assumptions
A10: Assumptions
G12: Note
D13: Management fee | F13: % | G13: 1 | H13: 0.0085
D14: Discount rate | F14: % | H14: 0.1
D15: Length of forecast | F15: Yr | G15: 2 | H15: 5
B17: Fees Model
B19: =Header_Number -> 1 | C19: Fee Output
B20: Incentive fee accrual
D21: Management fee payable | G21: NZ$m | M21: =M34 -> 109.2923887 | N21: =N34 -> 126.02117 | O21: 137.4244487 | P21: 150.0820881 | Q21: 164.1320677 | R21: 179.7275452 | S21: 0 | T21: 0 | U21: 0 | V21: 0 | W21: 0
B23: =Header_Number -> 2 | C23: Fee Calculation
H26: S/P Growth %
D27: Average share price | G27: NZ$m | H27: 0.11 | M27: 11.48 | N27: 12.45 | O27: =N27*(1+price.growth) -> 13.8195 | P27: 15.339645 | Q27: 17.02700595 | R27: 18.8999766 | S27: 20.97897403 | T27: 23.28666117 | U27: 25.8481939 | V27: 28.69149523 | W27: 31.84755971
D28: Average Shares on issue | G28: NZ$m | M28: 942.9 | N28: 979.6 | O28: =N28 -> 979.6 | P28: =O28 -> 979.6 | Q28: 979.6 | R28: 979.6 | S28: 979.6 | T28: 979.6 | U28: 979.6 | V28: 979.6 | W28: 979.6
D29: Market capitalisation | G29: NZ$m | M29: =M27*M28 -> 10824.492 | N29: 12196.02 | O29: 13537.5822 | P29: 15026.71624 | Q29: 16679.65503 | R29: 18514.41708 | S29: 20551.00296 | T29: 22811.61329 | U29: 25320.89075 | V29: 28106.18873 | W29: 31197.86949
D30: Average Market value of listed Debt securities | G30: NZ$m | M30: 1524.6 | N30: 1722.2 | O30: =N30 -> 1722.2 | P30: =O30 -> 1722.2 | Q30: 1722.2 | R30: 1722.2 | S30: 1722.2 | T30: 1722.2 | U30: 1722.2 | V30: 1722.2 | W30: 1722.2
D31: Average Net bank debt | G31: NZ$m | M31: 290.5 | N31: =2630-N30 -> 907.8 | O31: =N31 -> 907.8 | P31: =O31 -> 907.8 | Q31: 907.8 | R31: 907.8 | S31: 907.8 | T31: 907.8 | U31: 907.8 | V31: 907.8 | W31: 907.8
D32: Company Value | G32: NZ$m | M32: =SUM(M29:M31) -> 12639.592 | N32: =SUM(N29:N31) -> 14826.02 | O32: 16167.5822 | P32: 17656.71624 | Q32: 19309.65503 | R32: 21144.41708 | S32: 23181.00296 | T32: 25441.61329 | U32: 27950.89075 | V32: 30736.18873 | W32: 33827.86949
D34: Total management fee | G34: NZ$m | I34: Terminal Value | M34: 109.2923887 | N34: =IF(N7<=($H$15+1),N32*mgmtfee.rate,Zero) -> 126.02117 | O34: 137.4244487 | P34: 150.0820881 | Q34: 164.1320677 | R34: 179.7275452 | S34: 0 | T34: 0 | U34: 0 | V34: 0 | W34: 0
D35: Terminal value | G35: NZ$m | I35: 0 | M35: 0 | N35: =IF(N$7=$H$15+1,$I$35,Zero) -> 0 | O35: 0 | P35: 0 | Q35: 0 | R35: 0 | S35: 0 | T35: 0 | U35: 0 | V35: 0 | W35: 0
H36: PV of Mgmt. fee
D37: Present value of forecast management Fee | G37: NZ$m | H37: =IFERROR(XNPV(H14,N37:W37,N5:W5),Zero) -> 620.9618231 | M37: 0 | N37: =SUM(N34:N35) -> 126.02117 | O37: 137.4244487 | P37: 150.0820881 | Q37: 164.1320677 | R37: 179.7275452 | S37: 0 | T37: 0 | U37: 0 | V37: 0 | W37: =SUM(W34:W35) -> 0
H39: # of shares on issue | I39: $/share
D40: PV of management fee/share | G40: NZ$m | H40: 979.589512 | I40: =IFERROR(H37/H40,Zero) -> 0.6339000321
B42: =Header_Number -> 3 | C42: Notes
B44: 1) Details of how the Management Fee is calculated under the Management Agreement are outlined below. For simplicity, the model assumes a base management fee calculated using a blended rate of 0.85% to reflect the average in FY25.
B46: Management Agreement section
B47: 9.1 | E47: New Zealand Portfolio Management Fee: The Company shall pay the Manager within 7 Business Days of each Relevant Date a management fee ("New Zealand Portfolio Management Fee") equal to one twelfth of the aggregate of:
E48: - 1.125% of the New Zealand Company Value up to $50m
E49: - 1.0% of the New Zealand Company Value over $50m and up to $150m;
E50: - 0.80% of the New Zealand Company Value over $150m.
B52: "New Zealand Company Value" means on each Relevant Date the value derived by the application of the formula: NZCV = MP + BVD - UFS – IA + FX Value
B53: Where:
E54: NZCV = New Zealand Company Value
E55: MP = The weighted average market price of the Company's Securities on the Exchange over the five Trading Days ending on (and including) the Relevant Date, as calculated by the Manager
E56: BVD = The book value of the total debt of the Company less the book value of any Non-New Zealand Portfolio Entities' Debt (but not deducting any Australian Portfolio Entities' Debt) included in the book value of the total debt of the Company
E57: UFS = Unallocated Funds plus the market value of any Securities in which Unallocated Funds have been invested pursuant to clause 5.4
E58: IA = The Cost Value of the Non-New Zealand Portfolio Securities that are not Australian Portfolio Securities
E59: FX Value = the net present value (which may be a negative number) in New Zealand dollars as at the Relevant Date of all existing foreign exchange contracts entered into by the Company for the purposes of hedging its foreign exchange exposure arising out of the acquisition and holding of relevant Non-New Zealand Portfolio Securities (which are, where this definition is used in the definition of New Zealand Company Value, only the Australian Portfolio Securities and, where used in clauses 9.2 and 12.1.2, are exclusive of the Australian Portfolio Securities) held at the Relevant Date plus the net gain or loss suffered from any prior such contracts in respect of those Non-New Zealand Portfolio Securities that have now been closed out
B61: 9.2 | E61: International Portfolio Management Fee: The Company shall pay the Manager within 7 Business Days of each Relevant Date a management fee ("International Portfolio Management Fee") equal to one twelfth of the aggregate of 1.50% of:
E62: - the aggregate of the Cost Value of the Non-New Zealand Portfolio Securities, the Non-New Zealand Portfolio Entities' Debt and the FX Value, less
E63: - the aggregate of the Cost Value of the Australian Portfolio Securities and the Australian Portfolio Entities' Debt
B65: Cost value is defined as the acquisition cost, including capitalised acquisition costs.
B67: 2) The length of the forecast period is set with reference to the termination period as outlined in the Management Agreement
B69: Management Agreement section
B70: 11.2.1 | E70: On Notice: Either the Manager or the Company may terminate this Agreement by the giving of written notice by one to the other. The Agreement shall terminate on the date that is five years from the next annual balance date of the Company following written notice of termination.
B73: =" " ->  | C73: =" " ->  | D73: =" " ->  | E73: END OF SHEET | F73: =" " -> 

Sheet Incentive Fee
C1: Infratil Illustrative Fees Model
B2: Illustrative Annual Incentive Fee Model
J4: Period Start | K4: =EOMONTH(L4,-Months_Year-1)+1 -> 2022-04-01 | L4: =EOMONTH(M4,-Months_Year-1)+1 -> 2023-04-01 | M4: 2024-04-01 | N4: =M5+1 -> 2025-04-01 | O4: =N5+1 -> 2026-04-01 | P4: 2027-04-01 | Q4: 2028-04-01 | R4: 2029-04-01 | S4: 2030-04-01 | T4: 2031-04-01 | U4: 2032-04-01 | V4: 2033-04-01 | W4: 2034-04-01 | X4: =W5+1 -> 2035-04-01 | Y4: =X5+1 -> 2036-04-01 | Z4: 2037-04-01
J5: Period End | K5: =EOMONTH(K4,Months_Year -1) -> 2023-03-31 | L5: =EOMONTH(L4,Months_Year -1) -> 2024-03-31 | M5: =EOMONTH(M4,Months_Year -1) -> 2025-03-31 | N5: =EOMONTH(N4,Months_Year -1) -> 2026-03-31 | O5: 2027-03-31 | P5: 2028-03-31 | Q5: 2029-03-31 | R5: 2030-03-31 | S5: 2031-03-31 | T5: 2032-03-31 | U5: 2033-03-31 | V5: 2034-03-31 | W5: =EOMONTH(W4,Months_Year -1) -> 2035-03-31 | X5: =EOMONTH(X4,Months_Year -1) -> 2036-03-31 | Y5: 2037-03-31 | Z5: =EOMONTH(Z4,Months_Year -1) -> 2038-03-31
J6: Financial year | K6: =YEAR(K5) -> 2023 | L6: =YEAR(L5) -> 2024 | M6: =YEAR(M5) -> 2025 | N6: =YEAR(N5) -> 2026 | O6: 2027 | P6: 2028 | Q6: 2029 | R6: 2030 | S6: 2031 | T6: 2032 | U6: 2033 | V6: 2034 | W6: =YEAR(W5) -> 2035 | X6: =YEAR(X5) -> 2036 | Y6: 2037 | Z6: =YEAR(Z5) -> 2038
J7: Period | K7: -2 | L7: -1 | M7: 1 | N7: =M7+1 -> 2 | O7: =N7+1 -> 3 | P7: 4 | Q7: 5 | R7: 6 | S7: 7 | T7: 8 | U7: 9 | V7: 10 | W7: 11 | X7: =W7+1 -> 12 | Y7: =X7+1 -> 13 | Z7: 14
C8: Assumptions
B9: Assumptions
D12: Incentive fee hurdle | F12: % | H12: 0.12
D13: Fee on outperformance | F13: % | H13: 0.2
D14: Discount rate | F14: % | H14: 0.1
D15: Length of forecast | F15: Yr | H15: 5
B17: Incentive Fee Model
B19: =Header_Number -> 1 | C19: Incentive Fee Outputs
D22: Annual Fee Accrual | G22: NZ$m | K22: =fees.payable -> 163.9338028 | L22: 91.3349896 | M22: 350.6424219 | N22: 0 | O22: 21.54469795 | P22: 27.8730325 | Q22: 31.49652673 | R22: 35.5910752 | S22: 0 | T22: 0 | U22: 0 | V22: 0 | W22: 0 | X22: 0 | Y22: 0 | Z22: 0
D23: Negative fee bank | G23: NZ$m | K23: 0 | L23: 0 | M23: =Negative.bank -> 0 | N23: -3.121702498 | O23: 0 | P23: 0 | Q23: 0 | R23: 0 | S23: 0 | T23: 0 | U23: 0 | V23: 0 | W23: 0 | X23: 0 | Y23: 0 | Z23: 0
D25: Annual Fee Payment - T1 | G25: NZ$m | K25: 0 | L25: 0 | M25: 0 | N25: =fees.paid -> 116.8808073 | O25: 0 | P25: 7.181565983 | Q25: 9.291010835 | R25: 10.49884224 | S25: 11.86369173 | T25: 0 | U25: 0 | V25: 0 | W25: 0 | X25: 0 | Y25: 0 | Z25: 0
D26: Annual Fee Payment - T2 | G26: NZ$m | K26: 0 | L26: 0 | M26: 0 | N26: 30.44499653 | O26: 116.8808073 | P26: 0 | Q26: 7.181565983 | R26: 9.291010835 | S26: 10.49884224 | T26: 11.86369173 | U26: 0 | V26: 0 | W26: 0 | X26: 0 | Y26: 0 | Z26: 0
D27: Annual Fee Payment - T3 | G27: NZ$m | H27: PV of Incentive Fee | K27: 0 | L27: 0 | M27: 0 | N27: 54.64460092 | O27: 30.44499653 | P27: 116.8808073 | Q27: 0 | R27: 7.181565983 | S27: 9.291010835 | T27: 10.49884224 | U27: 11.86369173 | V27: 0 | W27: 0 | X27: 0 | Y27: 0 | Z27: 0
D28: Total fee payment in year | G28: NZ$m | H28: =IFERROR(XNPV($H$14,N28:Z28,N5:Z5),Zero) -> 507.5474401 | K28: 0 | L28: 0 | M28: 0 | N28: =SUM(N25:N27) -> 201.9704048 | O28: =SUM(O25:O27) -> 147.3258038 | P28: 124.0623733 | Q28: 16.47257682 | R28: 26.97141906 | S28: 31.65354481 | T28: 22.36253398 | U28: 11.86369173 | V28: 0 | W28: 0 | X28: 0 | Y28: 0 | Z28: 0
H30: # of shares on issue | I30: $/share
D31: PV of Incentive Fee/share | G31: NZ$m | H31: 979.589512 | I31: =IFERROR(H28/H31,Zero) -> 0.5181225747
B33: =Header_Number -> 2 | C33: Incentive Fee Inputs
D35: Initial Valuations | H35: Asset Names
D36: Valuations include assumptions for cost of sale for all assets and taxes on some assets | G36: NZ$m | H36: CDC | L36: 4399.335223 | M36: 7212.241952
G37: NZ$m | H37: Longroad Energy | L37: 1503.146056 | M37: 1728.230267
G38: NZ$m | H38: Kao Data | L38: 550.6819088 | M38: 694.5377417
G39: NZ$m | H39: Galileo | L39: 237.1071156 | M39: 321.0892756
G40: NZ$m | H40: Gurin Energy | L40: 233.5079703 | M40: 485.6239843
G41: NZ$m | H41: RetireAustralia | L41: 454.0785851 | M41: 404.2427476
G42: NZ$m | H42: Qscan | L42: 407.7752526 | M42: 450.0032058
G43: NZ$m | H43: Mint Renewables | I43: Initial Val | J43: Year Initial Val | L43: 0 | M43: 22.61005344
G44: NZ$m | H44: Asset 9 | L44: 0 | M44: 0 | N44: =IF($J44=N5,$I44,0) -> 0 | O44: 0 | P44: 0 | Q44: 0 | R44: 0 | S44: 0 | T44: 0 | U44: 0 | V44: 0 | W44: 0
G45: NZ$m | H45: Asset 10 | L45: 0 | M45: 0 | N45: =IF($J45=N6,$I45,0) -> 0 | O45: 0 | P45: 0 | Q45: 0 | R45: 0 | S45: 0 | T45: 0 | U45: 0 | V45: 0 | W45: 0
D47: Valuation Growth rates
D48: =Assets.list -> CDC | G48: % | L48: 0 | M48: 0 | N48: 0.13 | O48: 0.13 | P48: 0.13 | Q48: 0.13 | R48: 0.13 | S48: 0.13 | T48: 0.13 | U48: 0.13 | V48: 0.13 | W48: 0.13
D49: Longroad Energy | G49: % | L49: 0 | M49: 0 | N49: 0.13 | O49: 0.13 | P49: 0.13 | Q49: 0.13 | R49: 0.13 | S49: 0.13 | T49: 0.13 | U49: 0.13 | V49: 0.13 | W49: 0.13
D50: Kao Data | G50: % | L50: 0 | M50: 0 | N50: 0.13 | O50: 0.13 | P50: 0.13 | Q50: 0.13 | R50: 0.13 | S50: 0.13 | T50: 0.13 | U50: 0.13 | V50: 0.13 | W50: 0.13
D51: Galileo | G51: % | L51: 0 | M51: 0 | N51: 0.13 | O51: 0.13 | P51: 0.13 | Q51: 0.13 | R51: 0.13 | S51: 0.13 | T51: 0.13 | U51: 0.13 | V51: 0.13 | W51: 0.13
D52: Gurin Energy | G52: % | L52: 0 | M52: 0 | N52: 0.13 | O52: 0.13 | P52: 0.13 | Q52: 0.13 | R52: 0.13 | S52: 0.13 | T52: 0.13 | U52: 0.13 | V52: 0.13 | W52: 0.13
D53: RetireAustralia | G53: % | L53: 0 | M53: 0 | N53: 0 | O53: 0 | P53: 0 | Q53: 0 | R53: 0 | S53: 0 | T53: 0 | U53: 0 | V53: 0 | W53: 0
D54: Qscan | G54: % | L54: 0 | M54: 0 | N54: 0.13 | O54: 0.13 | P54: 0.13 | Q54: 0.13 | R54: 0.13 | S54: 0.13 | T54: 0.13 | U54: 0.13 | V54: 0.13 | W54: 0.13
D55: Mint Renewables | G55: % | L55: 0 | M55: 0 | N55: 0.13 | O55: 0.13 | P55: 0.13 | Q55: 0.13 | R55: 0.13 | S55: 0.13 | T55: 0.13 | U55: 0.13 | V55: 0.13 | W55: 0.13
D56: Asset 9 | G56: % | L56: 0 | M56: 0 | N56: 0.13 | O56: 0.13 | P56: 0.13 | Q56: 0.13 | R56: 0.13 | S56: 0.13 | T56: 0.13 | U56: 0.13 | V56: 0.13 | W56: 0.13
D57: Asset 10 | G57: % | L57: 0 | M57: 0 | N57: 0.13 | O57: 0.13 | P57: 0.13 | Q57: 0.13 | R57: 0.13 | S57: 0.13 | T57: 0.13 | U57: 0.13 | V57: 0.13 | W57: 0.13
D60: In year capital contributions
D61: =Assets.list -> CDC | G61: NZ$m | L61: 0 | M61: 494.2093518 | N61: 0 | O61: 0 | P61: 0 | Q61: 0 | R61: 0 | S61: 0 | T61: 0 | U61: 0 | V61: 0 | W61: 0
D62: Longroad Energy | G62: NZ$m | L62: 0 | M62: 163.3539862 | N62: 0 | O62: 0 | P62: 0 | Q62: 0 | R62: 0 | S62: 0 | T62: 0 | U62: 0 | V62: 0 | W62: 0
D63: Kao Data | G63: NZ$m | L63: 0 | M63: 82.93550939 | N63: 0 | O63: 0 | P63: 0 | Q63: 0 | R63: 0 | S63: 0 | T63: 0 | U63: 0 | V63: 0 | W63: 0
D64: Galileo | G64: NZ$m | L64: 0 | M64: 41.88910324 | N64: 0 | O64: 0 | P64: 0 | Q64: 0 | R64: 0 | S64: 0 | T64: 0 | U64: 0 | V64: 0 | W64: 0
D65: Gurin Energy | G65: NZ$m | L65: 0 | M65: 67.49368115 | N65: 0 | O65: 0 | P65: 0 | Q65: 0 | R65: 0 | S65: 0 | T65: 0 | U65: 0 | V65: 0 | W65: 0
D66: RetireAustralia | G66: NZ$m | L66: 0 | M66: 0 | N66: 0 | O66: 0 | P66: 0 | Q66: 0 | R66: 0 | S66: 0 | T66: 0 | U66: 0 | V66: 0 | W66: 0
D67: Qscan | G67: NZ$m | L67: 0 | M67: 0 | N67: 0 | O67: 0 | P67: 0 | Q67: 0 | R67: 0 | S67: 0 | T67: 0 | U67: 0 | V67: 0 | W67: 0
D68: Mint Renewables | G68: NZ$m | L68: 0 | M68: 21.81593363 | N68: 0 | O68: 0 | P68: 0 | Q68: 0 | R68: 0 | S68: 0 | T68: 0 | U68: 0 | V68: 0 | W68: 0
D69: Asset 9 | G69: NZ$m | L69: 0 | M69: 0 | N69: 0 | O69: 0 | P69: 0 | Q69: 0 | R69: 0 | S69: 0 | T69: 0 | U69: 0 | V69: 0 | W69: 0
D70: Asset 10 | G70: NZ$m | L70: 0 | M70: 0 | N70: 0 | O70: 0 | P70: 0 | Q70: 0 | R70: 0 | S70: 0 | T70: 0 | U70: 0 | V70: 0 | W70: 0
D73: In year Distributions to Infratil
D74: =Assets.list -> CDC | G74: NZ$m | L74: 0 | M74: 24.13363644 | N74: 0 | O74: 0 | P74: 0 | Q74: 0 | R74: 0 | S74: 0 | T74: 0 | U74: 0 | V74: 0 | W74: 0
D75: Longroad Energy | G75: NZ$m | L75: 0 | M75: 0 | N75: 0 | O75: 0 | P75: 0 | Q75: 0 | R75: 0 | S75: 0 | T75: 0 | U75: 0 | V75: 0 | W75: 0
D76: Kao Data | G76: NZ$m | L76: 0 | M76: 0 | N76: 0 | O76: 0 | P76: 0 | Q76: 0 | R76: 0 | S76: 0 | T76: 0 | U76: 0 | V76: 0 | W76: 0
D77: Galileo | G77: NZ$m | L77: 0 | M77: 0 | N77: 0 | O77: 0 | P77: 0 | Q77: 0 | R77: 0 | S77: 0 | T77: 0 | U77: 0 | V77: 0 | W77: 0
D78: Gurin Energy | G78: NZ$m | L78: 0 | M78: 0.5631846966 | N78: 0 | O78: 0 | P78: 0 | Q78: 0 | R78: 0 | S78: 0 | T78: 0 | U78: 0 | V78: 0 | W78: 0
D79: RetireAustralia | G79: NZ$m | L79: 0 | M79: 5.208618462 | N79: 0
D80: Qscan | G80: NZ$m | L80: 0 | M80: 43.55823726 | N80: 0 | O80: 0 | P80: 0 | Q80: 0 | R80: 0 | S80: 0 | T80: 0 | U80: 0 | V80: 0 | W80: 0
D81: Mint Renewables | G81: NZ$m | L81: 0 | M81: 0 | N81: 0 | O81: 0 | P81: 0 | Q81: 0 | R81: 0 | S81: 0 | T81: 0 | U81: 0 | V81: 0 | W81: 0
D82: Asset 9 | G82: NZ$m | L82: 0 | M82: 0 | N82: 0 | O82: 0 | P82: 0 | Q82: 0 | R82: 0 | S82: 0 | T82: 0 | U82: 0 | V82: 0 | W82: 0
D83: Asset 10 | G83: NZ$m | L83: 0 | M83: 0 | N83: 0 | O83: 0 | P83: 0 | Q83: 0 | R83: 0 | S83: 0 | T83: 0 | U83: 0 | V83: 0 | W83: 0
D85: Hurdle
D86: =Assets.list -> CDC | G86: NZ$m | L86: 0 | M86: 543.2690324 | N86: 0 | O86: 0 | P86: 0 | Q86: 0 | R86: 0 | S86: 0 | T86: 0 | U86: 0 | V86: 0 | W86: 0
D87: Longroad Energy | G87: NZ$m | L87: 0 | M87: 185.1560294 | N87: 0 | O87: 0 | P87: 0 | Q87: 0 | R87: 0 | S87: 0 | T87: 0 | U87: 0 | V87: 0 | W87: 0
D88: Kao Data | G88: NZ$m | L88: 0 | M88: 70.23246806 | N88: 0 | O88: 0 | P88: 0 | Q88: 0 | R88: 0 | S88: 0 | T88: 0 | U88: 0 | V88: 0 | W88: 0
D89: Galileo | G89: NZ$m | L89: 0 | M89: 30.09181196 | N89: 0 | O89: 0 | P89: 0 | Q89: 0 | R89: 0 | S89: 0 | T89: 0 | U89: 0 | V89: 0 | W89: 0
D90: Gurin Energy | G90: NZ$m | L90: 0 | M90: 31.2967878 | N90: 0 | O90: 0 | P90: 0 | Q90: 0 | R90: 0 | S90: 0 | T90: 0 | U90: 0 | V90: 0 | W90: 0
D91: RetireAustralia | G91: NZ$m | L91: 0 | M91: 54.2790244 | N91: 0 | O91: 0 | P91: 0 | Q91: 0 | R91: 0 | S91: 0 | T91: 0 | U91: 0 | V91: 0 | W91: 0
D92: Qscan | G92: NZ$m | L92: 0 | M92: 48.91870979 | N92: 0 | O92: 0 | P92: 0 | Q92: 0 | R92: 0 | S92: 0 | T92: 0 | U92: 0 | V92: 0 | W92: 0
D93: Mint Renewables | G93: NZ$m | L93: 0 | M93: 3.101451982 | N93: 0 | O93: 0 | P93: 0 | Q93: 0 | R93: 0 | S93: 0 | T93: 0 | U93: 0 | V93: 0 | W93: 0
D94: Asset 9 | G94: NZ$m | L94: 0 | M94: 0 | N94: 0 | O94: 0 | P94: 0 | Q94: 0 | R94: 0 | S94: 0 | T94: 0 | U94: 0 | V94: 0 | W94: 0
D95: Asset 10 | G95: NZ$m | L95: 0 | M95: 0 | N95: 0 | O95: 0 | P95: 0 | Q95: 0 | R95: 0 | S95: 0 | T95: 0 | U95: 0 | V95: 0 | W95: 0
D97: FX contract
D98: =Assets.list -> CDC | G98: NZ$m | L98: 0 | M98: 0 | N98: 0 | O98: 0 | P98: 0 | Q98: 0 | R98: 0 | S98: 0 | T98: 0 | U98: 0 | V98: 0 | W98: 0
D99: Longroad Energy | G99: NZ$m | L99: 0 | M99: -2.572285306 | N99: 0 | O99: 0 | P99: 0 | Q99: 0 | R99: 0 | S99: 0 | T99: 0 | U99: 0 | V99: 0 | W99: 0
D100: Kao Data | G100: NZ$m | L100: 0 | M100: -8.31664385 | N100: 0 | O100: 0 | P100: 0 | Q100: 0 | R100: 0 | S100: 0 | T100: 0 | U100: 0 | V100: 0 | W100: 0
D101: Galileo | G101: NZ$m | L101: 0 | M101: 0 | N101: 0 | O101: 0 | P101: 0 | Q101: 0 | R101: 0 | S101: 0 | T101: 0 | U101: 0 | V101: 0 | W101: 0
D102: Gurin Energy | G102: NZ$m | L102: 0 | M102: -4.266872996 | N102: 0 | O102: 0 | P102: 0 | Q102: 0 | R102: 0 | S102: 0 | T102: 0 | U102: 0 | V102: 0 | W102: 0
D103: RetireAustralia | G103: NZ$m | L103: 0 | M103: 0 | N103: 0 | O103: 0 | P103: 0 | Q103: 0 | R103: 0 | S103: 0 | T103: 0 | U103: 0 | V103: 0 | W103: 0
D104: Qscan | G104: NZ$m | L104: 0 | M104: 0 | N104: 0 | O104: 0 | P104: 0 | Q104: 0 | R104: 0 | S104: 0 | T104: 0 | U104: 0 | V104: 0 | W104: 0
D105: Mint Renewables | G105: NZ$m | L105: 0 | M105: 0 | N105: 0 | O105: 0 | P105: 0 | Q105: 0 | R105: 0 | S105: 0 | T105: 0 | U105: 0 | V105: 0 | W105: 0
D106: Asset 9 | G106: NZ$m | L106: 0 | M106: 0 | N106: 0 | O106: 0 | P106: 0 | Q106: 0 | R106: 0 | S106: 0 | T106: 0 | U106: 0 | V106: 0 | W106: 0
D107: Asset 10 | G107: NZ$m | L107: 0 | M107: 0 | N107: 0 | O107: 0 | P107: 0 | Q107: 0 | R107: 0 | S107: 0 | T107: 0 | U107: 0 | V107: 0 | W107: 0
B110: =Header_Number -> 3 | C110: Calculations
D112: Asset Valuations
D113: =Assets.list -> CDC | G113: NZ$m | L113: =L36 -> 4399.335223 | M113: 7212.241952 | N113: =M113*(1+N48)+N61*(1+N48*(6/12)) -> 8149.833406 | O113: 9209.311749 | P113: 10406.52228 | Q113: 11759.37017 | R113: 13288.08829 | S113: 15015.53977 | T113: 16967.55994 | U113: 19173.34274 | V113: 21665.87729 | W113: 24482.44134
D114: Longroad Energy | G114: NZ$m | L114: 1503.146056 | M114: 1728.230267 | N114: 1952.900202 | O114: 2206.777228 | P114: 2493.658268 | Q114: 2817.833843 | R114: 3184.152242 | S114: 3598.092034 | T114: 4065.843998 | U114: 4594.403718 | V114: 5191.676201 | W114: 5866.594107
D115: Kao Data | G115: NZ$m | L115: 550.6819088 | M115: 694.5377417 | N115: 784.8276481 | O115: 886.8552424 | P115: 1002.146424 | Q115: 1132.425459 | R115: 1279.640769 | S115: 1445.994069 | T115: 1633.973298 | U115: 1846.389826 | V115: 2086.420504 | W115: 2357.655169
D116: Galileo | G116: NZ$m | L116: 237.1071156 | M116: 321.0892756 | N116: 362.8308814 | O116: 409.998896 | P116: 463.2987525 | Q116: 523.5275903 | R116: 591.5861771 | S116: 668.4923801 | T116: 755.3963895 | U116: 853.5979201 | V116: 964.5656498 | W116: 1089.959184
D117: Gurin Energy | G117: NZ$m | L117: 233.5079703 | M117: 485.6239843 | N117: =M117*(1+N52)+N65*(1+N52*(6/12)) -> 548.7551023 | O117: 620.0932656 | P117: 700.7053901 | Q117: 791.7970909 | R117: 894.7307127 | S117: 1011.045705 | T117: 1142.481647 | U117: 1291.004261 | V117: 1458.834815 | W117: 1648.483341
D118: RetireAustralia | G118: NZ$m | L118: 454.0785851 | M118: 404.2427476 | N118: 328
D119: Qscan | G119: NZ$m | L119: 407.7752526 | M119: 450.0032058 | N119: 508.5036226 | O119: 574.6090935 | P119: 649.3082756 | Q119: 733.7183515 | R119: 829.1017372 | S119: 936.884963 | T119: 1058.680008 | U119: 1196.308409 | V119: 1351.828502 | W119: 1527.566208
D120: Mint Renewables | G120: NZ$m | L120: 0 | M120: 22.61005344 | N120: 25.54936039 | O120: 28.87077724 | P120: 32.62397828 | Q120: 36.86509546 | R120: 41.65755787 | S120: 47.07304039 | T120: 53.19253564 | U120: 60.10756527 | V120: 67.92154876 | W120: 76.7513501
D121: Asset 9 | G121: NZ$m | L121: 0 | M121: 0 | N121: =IF($J44=N$5,N44,M121*(1+N56)+N69*(1+N56*(6/12))) -> 0 | O121: =IF($J44=O$5,O44,N121*(1+O56)+O69*(1+O56*(6/12))) -> 0 | P121: 0 | Q121: 0 | R121: 0 | S121: 0 | T121: 0 | U121: 0 | V121: 0 | W121: 0
D122: Asset 10 | G122: NZ$m | L122: 0 | M122: 0 | N122: =IF($J45=N$5,N45,M122*(1+N57)+N70*(1+N57*(6/12))) -> 0 | O122: 0 | P122: 0 | Q122: 0 | R122: 0 | S122: 0 | T122: 0 | U122: 0 | V122: 0 | W122: 0
D124: Hurdle
D125: =Assets.list -> CDC | G125: NZ$m | L125: 0 | M125: =M86 -> 543.2690324 | N125: =M113*hurdle.rate+N61*hurdle.rate*(6/12)-N74*hurdle.rate*(6/12) -> 865.4690343 | O125: 977.9800087 | P125: 1105.11741 | Q125: 1248.782673 | R125: 1411.124421 | S125: 1594.570595 | T125: 1801.864773 | U125: 2036.107193 | V125: 2300.801128 | W125: 2599.905275
D126: Longroad Energy | G126: NZ$m | L126: 0 | M126: 185.1560294 | N126: =M114*hurdle.rate+N62*hurdle.rate*(6/12)-N75*hurdle.rate*(6/12) -> 207.3876321 | O126: 234.3480242 | P126: 264.8132674 | Q126: 299.2389921 | R126: 338.1400611 | S126: 382.0982691 | T126: 431.7710441 | U126: 487.9012798 | V126: 551.3284462 | W126: 623.0011442
D127: Kao Data | G127: NZ$m | L127: 0 | M127: 70.23246806 | N127: =M115*hurdle.rate+N63*hurdle.rate*(6/12)-N76*hurdle.rate*(6/12) -> 83.34452901 | O127: 94.17931778 | P127: 106.4226291 | Q127: 120.2575709 | R127: 135.8910551 | S127: 153.5568922 | T127: 173.5192882 | U127: 196.0767957 | V127: 221.5667791 | W127: 250.3704604
D128: Galileo | G128: NZ$m | L128: 0 | M128: 30.09181196 | N128: =M116*hurdle.rate+N64*hurdle.rate*(6/12)-N77*hurdle.rate*(6/12) -> 38.53071307 | O128: 43.53970577 | P128: 49.19986752 | Q128: 55.5958503 | R128: 62.82331084 | S128: 70.99034125 | T128: 80.21908561 | U128: 90.64756674 | V128: 102.4317504 | W128: 115.747878
D129: Gurin Energy | G129: NZ$m | L129: 0 | M129: 31.2967878 | N129: =M117*hurdle.rate+N65*hurdle.rate*(6/12)-N78*hurdle.rate*(6/12) -> 58.27487812 | O129: 65.85061228 | P129: 74.41119187 | Q129: 84.08464682 | R129: 95.0156509 | S129: 107.3676855 | T129: 121.3254846 | U129: 137.0977976 | V129: 154.9205113 | W129: 175.0601778
D130: RetireAustralia | G130: NZ$m | L130: 0 | M130: 54.2790244 | N130: =M118*hurdle.rate+N66*hurdle.rate*(6/12)-N79*hurdle.rate*(6/12) -> 48.50912971
D131: Qscan | G131: NZ$m | L131: 0 | M131: 48.91870979 | N131: =M119*hurdle.rate+N67*hurdle.rate*(6/12)-N80*hurdle.rate*(6/12) -> 54.0003847 | O131: 61.02043471 | P131: 68.95309122 | Q131: 77.91699308 | R131: 88.04620218 | S131: 99.49220846 | T131: 112.4261956 | U131: 127.041601 | V131: 143.5570091 | W131: 162.2194203
D132: Mint Renewables | G132: NZ$m | L132: 0 | M132: 3.101451982 | N132: =M120*hurdle.rate+N68*hurdle.rate*(6/12)-N81*hurdle.rate*(6/12) -> 2.713206413 | O132: 3.065923247 | P132: 3.464493269 | Q132: 3.914877394 | R132: 4.423811455 | S132: 4.998906944 | T132: 5.648764847 | U132: 6.383104277 | V132: 7.212907833 | W132: 8.150585851
D133: Asset 9 | G133: NZ$m | L133: 0 | M133: 0 | N133: =M121*hurdle.rate+N69*hurdle.rate*(6/12)-N82*hurdle.rate*(6/12) -> 0 | O133: 0 | P133: 0 | Q133: 0 | R133: 0 | S133: 0 | T133: 0 | U133: 0 | V133: 0 | W133: 0
D134: Asset 10 | G134: NZ$m | L134: 0 | M134: 0 | N134: =M122*hurdle.rate+N70*hurdle.rate*(6/12)-N83*hurdle.rate*(6/12) -> 0 | O134: 0 | P134: 0 | Q134: 0 | R134: 0 | S134: 0 | T134: 0 | U134: 0 | V134: 0 | W134: 0
D136: =Asset1.Name -> CDC
D137: Opening valuation | G137: NZ$m | L137: 0 | M137: =_xlfn.XLOOKUP($D136,Assets.list,L$113:L$122) -> 4399.335223 | N137: 7212.241952 | O137: 8149.833406 | P137: 9209.311749 | Q137: 10406.52228 | R137: 11759.37017 | S137: 13288.08829 | T137: 15015.53977 | U137: 16967.55994 | V137: 19173.34274 | W137: 21665.87729
D138: Capital contributions | G138: NZ$m | L138: 0 | M138: =_xlfn.XLOOKUP($D136,Assets.list,M$61:M$70) -> 494.2093518 | N138: 0 | O138: 0 | P138: 0 | Q138: 0 | R138: 0 | S138: 0 | T138: 0 | U138: 0 | V138: 0 | W138: 0
D139: Distributions | G139: NZ$m | L139: 0 | M139: =-_xlfn.XLOOKUP($D136,Assets.list,M$74:M$83) -> -24.13363644 | N139: 0 | O139: 0 | P139: 0 | Q139: 0 | R139: 0 | S139: 0 | T139: 0 | U139: 0 | V139: 0 | W139: 0
D140: Hurdle | G140: NZ$m | L140: 0 | M140: =_xlfn.XLOOKUP($D136,Assets.list,M$125:M$134) -> 543.2690324 | N140: 865.4690343 | O140: 977.9800087 | P140: 1105.11741 | Q140: 1248.782673 | R140: 1411.124421 | S140: 1594.570595 | T140: 1801.864773 | U140: 2036.107193 | V140: 2300.801128 | W140: 2599.905275
D141: FX Contracts | G141: NZ$m | L141: 0 | M141: =-_xlfn.XLOOKUP($D136,Assets.list,M$98:M$107) -> 0 | N141: 0 | O141: 0 | P141: 0 | Q141: 0 | R141: 0 | S141: 0 | T141: 0 | U141: 0 | V141: 0 | W141: 0
D142: Benchmark valuation | G142: NZ$m | L142: 0 | M142: =SUM(M137:M141) -> 5412.679971 | N142: =SUM(N137:N141) -> 8077.710987 | O142: 9127.813415 | P142: 10314.42916 | Q142: 11655.30495 | R142: 13170.49459 | S142: 14882.65889 | T142: 16817.40455 | U142: 19003.66714 | V142: 21474.14386 | W142: 24265.78257
D143: Closing valuation | G143: NZ$m | L143: 0 | M143: =_xlfn.XLOOKUP($D136,Assets.list,M$113:M$122) -> 7212.241952 | N143: 8149.833406 | O143: 9209.311749 | P143: 10406.52228 | Q143: 11759.37017 | R143: 13288.08829 | S143: 15015.53977 | T143: 16967.55994 | U143: 19173.34274 | V143: 21665.87729 | W143: 24482.44134
D144: Outperformance | G144: NZ$m | L144: 0 | M144: =M143-M142 -> 1799.561981 | N144: =N143-N142 -> 72.12241952 | O144: 81.49833406 | P144: 92.09311749 | Q144: 104.0652228 | R144: 117.5937017 | S144: 132.8808829 | T144: 150.1553977 | U144: 169.6755994 | V144: 191.7334274 | W144: 216.6587729
D145: Fee | G145: NZ$m | L145: 0 | M145: =M144*fee.rate -> 359.9123962 | N145: 14.4244839 | O145: 16.29966681 | P145: 18.4186235 | Q145: 20.81304455 | R145: 23.51874034 | S145: 26.57617659 | T145: 30.03107955 | U145: 33.93511989 | V145: 38.34668547 | W145: 43.33175458
D147: =Asset2.Name -> Longroad Energy
D148: Opening valuation | G148: NZ$m | L148: 0 | M148: =_xlfn.XLOOKUP($D147,Assets.list,L$113:L$122) -> 1503.146056 | N148: 1728.230267 | O148: 1952.900202 | P148: 2206.777228 | Q148: 2493.658268 | R148: 2817.833843 | S148: 3184.152242 | T148: 3598.092034 | U148: 4065.843998 | V148: 4594.403718 | W148: 5191.676201
D149: Capital contributions | G149: NZ$m | L149: 0 | M149: =_xlfn.XLOOKUP($D147,Assets.list,M$61:M$70) -> 163.3539862 | N149: 0 | O149: 0 | P149: 0 | Q149: 0 | R149: 0 | S149: 0 | T149: 0 | U149: 0 | V149: 0 | W149: 0
D150: Distributions | G150: NZ$m | L150: 0 | M150: =-_xlfn.XLOOKUP($D147,Assets.list,M$74:M$83) -> 0 | N150: 0 | O150: 0 | P150: 0 | Q150: 0 | R150: 0 | S150: 0 | T150: 0 | U150: 0 | V150: 0 | W150: 0
D151: Hurdle | G151: NZ$m | L151: 0 | M151: =_xlfn.XLOOKUP($D147,Assets.list,M$125:M$134) -> 185.1560294 | N151: 207.3876321 | O151: 234.3480242 | P151: 264.8132674 | Q151: 299.2389921 | R151: 338.1400611 | S151: 382.0982691 | T151: 431.7710441 | U151: 487.9012798 | V151: 551.3284462 | W151: 623.0011442
D152: FX Contracts | G152: NZ$m | L152: 0 | M152: =-_xlfn.XLOOKUP($D147,Assets.list,M$98:M$107) -> 2.572285306 | N152: 0 | O152: 0 | P152: 0 | Q152: 0 | R152: 0 | S152: 0 | T152: 0 | U152: 0 | V152: 0 | W152: 0
D153: Benchmark valuation | G153: NZ$m | L153: 0 | M153: =SUM(M148:M152) -> 1854.228357 | N153: =SUM(N148:N152) -> 1935.617899 | O153: 2187.248226 | P153: 2471.590496 | Q153: 2792.89726 | R153: 3155.973904 | S153: 3566.250511 | T153: 4029.863078 | U153: 4553.745278 | V153: 5145.732164 | W153: 5814.677345
D154: Closing valuation | G154: NZ$m | L154: 0 | M154: =_xlfn.XLOOKUP($D147,Assets.list,M$113:M$122) -> 1728.230267 | N154: 1952.900202 | O154: 2206.777228 | P154: 2493.658268 | Q154: 2817.833843 | R154: 3184.152242 | S154: 3598.092034 | T154: 4065.843998 | U154: 4594.403718 | V154: 5191.676201 | W154: 5866.594107
D155: Outperformance | G155: NZ$m | L155: 0 | M155: =M154-M153 -> -125.9980898 | N155: =N154-N153 -> 17.28230267 | O155: 19.52900202 | P155: 22.06777228 | Q155: 24.93658268 | R155: 28.17833843 | S155: 31.84152242 | T155: 35.98092034 | U155: 40.65843998 | V155: 45.94403718 | W155: 51.91676201
D156: Fee | G156: NZ$m | L156: 0 | M156: =M155*fee.rate -> -25.19961796 | N156: 3.456460534 | O156: 3.905800404 | P156: 4.413554456 | Q156: 4.987316536 | R156: 5.635667685 | S156: 6.368304485 | T156: 7.196184068 | U156: 8.131687996 | V156: 9.188807436 | W156: 10.3833524
D158: =Asset3.Name -> Kao Data
D159: Opening valuation | G159: NZ$m | L159: 0 | M159: =_xlfn.XLOOKUP($D158,Assets.list,L$113:L$122) -> 550.6819088 | N159: 694.5377417 | O159: 784.8276481 | P159: 886.8552424 | Q159: 1002.146424 | R159: 1132.425459 | S159: 1279.640769 | T159: 1445.994069 | U159: 1633.973298 | V159: 1846.389826 | W159: 2086.420504
D160: Capital contributions | G160: NZ$m | L160: 0 | M160: =_xlfn.XLOOKUP($D158,Assets.list,M$61:M$70) -> 82.93550939 | N160: 0 | O160: 0 | P160: 0 | Q160: 0 | R160: 0 | S160: 0 | T160: 0 | U160: 0 | V160: 0 | W160: 0
D161: Distributions | G161: NZ$m | L161: 0 | M161: =-_xlfn.XLOOKUP($D158,Assets.list,M$74:M$83) -> 0 | N161: 0 | O161: 0 | P161: 0 | Q161: 0 | R161: 0 | S161: 0 | T161: 0 | U161: 0 | V161: 0 | W161: 0
D162: Hurdle | G162: NZ$m | L162: 0 | M162: =_xlfn.XLOOKUP($D158,Assets.list,M$125:M$134) -> 70.23246806 | N162: 83.34452901 | O162: 94.17931778 | P162: 106.4226291 | Q162: 120.2575709 | R162: 135.8910551 | S162: 153.5568922 | T162: 173.5192882 | U162: 196.0767957 | V162: 221.5667791 | W162: 250.3704604
D163: FX Contracts | G163: NZ$m | L163: 0 | M163: =-_xlfn.XLOOKUP($D158,Assets.list,M$98:M$107) -> 8.31664385 | N163: 0 | O163: 0 | P163: 0 | Q163: 0 | R163: 0 | S163: 0 | T163: 0 | U163: 0 | V163: 0 | W163: 0
D164: Benchmark valuation | G164: NZ$m | L164: 0 | M164: =SUM(M159:M163) -> 712.1665301 | N164: =SUM(N159:N163) -> 777.8822707 | O164: 879.0069659 | P164: 993.2778715 | Q164: 1122.403995 | R164: 1268.316514 | S164: 1433.197661 | T164: 1619.513357 | U164: 1830.050093 | V164: 2067.956605 | W164: 2336.790964
D165: Closing valuation | G165: NZ$m | L165: 0 | M165: =_xlfn.XLOOKUP($D158,Assets.list,M$113:M$122) -> 694.5377417 | N165: 784.8276481 | O165: 886.8552424 | P165: 1002.146424 | Q165: 1132.425459 | R165: 1279.640769 | S165: 1445.994069 | T165: 1633.973298 | U165: 1846.389826 | V165: 2086.420504 | W165: 2357.655169
D166: Outperformance | G166: NZ$m | L166: 0 | M166: =M165-M164 -> -17.62878835 | N166: =N165-N164 -> 6.945377417 | O166: 7.848276481 | P166: 8.868552424 | Q166: 10.02146424 | R166: 11.32425459 | S166: 12.79640769 | T166: 14.45994069 | U166: 16.33973298 | V166: 18.46389826 | W166: 20.86420504
D167: Fee | G167: NZ$m | L167: 0 | M167: =M166*fee.rate -> -3.525757671 | N167: 1.389075483 | O167: 1.569655296 | P167: 1.773710485 | Q167: 2.004292848 | R167: 2.264850918 | S167: 2.559281537 | T167: 2.891988137 | U167: 3.267946595 | V167: 3.692779652 | W167: 4.172841007
D169: =Asset4.Name -> Galileo
D170: Opening valuation | G170: NZ$m | L170: 0 | M170: =_xlfn.XLOOKUP($D169,Assets.list,L$113:L$122) -> 237.1071156 | N170: 321.0892756 | O170: 362.8308814 | P170: 409.998896 | Q170: 463.2987525 | R170: 523.5275903 | S170: 591.5861771 | T170: 668.4923801 | U170: 755.3963895 | V170: 853.5979201 | W170: 964.5656498
D171: Capital contributions | G171: NZ$m | L171: 0 | M171: =_xlfn.XLOOKUP($D169,Assets.list,M$61:M$70) -> 41.88910324 | N171: 0 | O171: 0 | P171: 0 | Q171: 0 | R171: 0 | S171: 0 | T171: 0 | U171: 0 | V171: 0 | W171: 0
D172: Distributions | G172: NZ$m | L172: 0 | M172: =-_xlfn.XLOOKUP($D169,Assets.list,M$74:M$83) -> 0 | N172: 0 | O172: 0 | P172: 0 | Q172: 0 | R172: 0 | S172: 0 | T172: 0 | U172: 0 | V172: 0 | W172: 0
D173: Hurdle | G173: NZ$m | L173: 0 | M173: =_xlfn.XLOOKUP($D169,Assets.list,M$125:M$134) -> 30.09181196 | N173: 38.53071307 | O173: 43.53970577 | P173: 49.19986752 | Q173: 55.5958503 | R173: 62.82331084 | S173: 70.99034125 | T173: 80.21908561 | U173: 90.64756674 | V173: 102.4317504 | W173: 115.747878
D174: FX Contracts | G174: NZ$m | L174: 0 | M174: =-_xlfn.XLOOKUP($D169,Assets.list,M$98:M$107) -> 0 | N174: 0 | O174: 0 | P174: 0 | Q174: 0 | R174: 0 | S174: 0 | T174: 0 | U174: 0 | V174: 0 | W174: 0
D175: Benchmark valuation | G175: NZ$m | L175: 0 | M175: =SUM(M170:M174) -> 309.0880308 | N175: =SUM(N170:N174) -> 359.6199887 | O175: 406.3705872 | P175: 459.1987635 | Q175: 518.8946028 | R175: 586.3509012 | S175: 662.5765183 | T175: 748.7114657 | U175: 846.0439562 | V175: 956.0296706 | W175: 1080.313528
D176: Closing valuation | G176: NZ$m | L176: 0 | M176: =_xlfn.XLOOKUP($D169,Assets.list,M$113:M$122) -> 321.0892756 | N176: 362.8308814 | O176: 409.998896 | P176: 463.2987525 | Q176: 523.5275903 | R176: 591.5861771 | S176: 668.4923801 | T176: 755.3963895 | U176: 853.5979201 | V176: 964.5656498 | W176: 1089.959184
D177: Outperformance | G177: NZ$m | L177: 0 | M177: =M176-M175 -> 12.00124477 | N177: =N176-N175 -> 3.210892756 | O177: 3.628308814 | P177: 4.09998896 | Q177: 4.632987525 | R177: 5.235275903 | S177: 5.915861771 | T177: 6.684923801 | U177: 7.553963895 | V177: 8.535979201 | W177: 9.645656498
D178: Fee | G178: NZ$m | L178: 0 | M178: =M177*fee.rate -> 2.400248953 | N178: 0.6421785512 | O178: 0.7256617629 | P178: 0.819997792 | Q178: 0.926597505 | R178: 1.047055181 | S178: 1.183172354 | T178: 1.33698476 | U178: 1.510792779 | V178: 1.70719584 | W178: 1.9291313
D180: =Asset5.Name -> Gurin Energy
D181: Opening valuation | G181: NZ$m | L181: 0 | M181: =_xlfn.XLOOKUP($D180,Assets.list,L$113:L$122) -> 233.5079703 | N181: 485.6239843 | O181: 548.7551023 | P181: 620.0932656 | Q181: 700.7053901 | R181: 791.7970909 | S181: 894.7307127 | T181: 1011.045705 | U181: 1142.481647 | V181: 1291.004261 | W181: 1458.834815
D182: Capital contributions | G182: NZ$m | L182: 0 | M182: =_xlfn.XLOOKUP($D180,Assets.list,M$61:M$70) -> 67.49368115 | N182: 0 | O182: 0 | P182: 0 | Q182: 0 | R182: 0 | S182: 0 | T182: 0 | U182: 0 | V182: 0 | W182: 0
D183: Distributions | G183: NZ$m | L183: 0 | M183: =-_xlfn.XLOOKUP($D180,Assets.list,M$74:M$83) -> -0.5631846966 | N183: 0 | O183: 0 | P183: 0 | Q183: 0 | R183: 0 | S183: 0 | T183: 0 | U183: 0 | V183: 0 | W183: 0
D184: Hurdle | G184: NZ$m | L184: 0 | M184: =_xlfn.XLOOKUP($D180,Assets.list,M$125:M$134) -> 31.2967878 | N184: 58.27487812 | O184: 65.85061228 | P184: 74.41119187 | Q184: 84.08464682 | R184: 95.0156509 | S184: 107.3676855 | T184: 121.3254846 | U184: 137.0977976 | V184: 154.9205113 | W184: 175.0601778
D185: FX Contracts | G185: NZ$m | L185: 0 | M185: =-_xlfn.XLOOKUP($D180,Assets.list,M$98:M$107) -> 4.266872996 | N185: 0 | O185: 0 | P185: 0 | Q185: 0 | R185: 0 | S185: 0 | T185: 0 | U185: 0 | V185: 0 | W185: 0
D186: Benchmark valuation | G186: NZ$m | L186: 0 | M186: =SUM(M181:M185) -> 336.0021275 | N186: =SUM(N181:N185) -> 543.8988625 | O186: 614.6057146 | P186: 694.5044575 | Q186: 784.790037 | R186: 886.8127418 | S186: 1002.098398 | T186: 1132.37119 | U186: 1279.579445 | V186: 1445.924772 | W186: 1633.894993
D187: Closing valuation | G187: NZ$m | L187: 0 | M187: =_xlfn.XLOOKUP($D180,Assets.list,M$113:M$122) -> 485.6239843 | N187: 548.7551023 | O187: 620.0932656 | P187: 700.7053901 | Q187: 791.7970909 | R187: 894.7307127 | S187: 1011.045705 | T187: 1142.481647 | U187: 1291.004261 | V187: 1458.834815 | W187: 1648.483341
D188: Outperformance | G188: NZ$m | L188: 0 | M188: =M187-M186 -> 149.6218568 | N188: =N187-N186 -> 4.856239843 | O188: 5.487551023 | P188: 6.200932656 | Q188: 7.007053901 | R188: 7.917970909 | S188: 8.947307127 | T188: 10.11045705 | U188: 11.42481647 | V188: 12.91004261 | W188: 14.58834815
D189: Fee | G189: NZ$m | L189: 0 | M189: =M188*fee.rate -> 29.92437136 | N189: 0.9712479687 | O189: 1.097510205 | P189: 1.240186531 | Q189: 1.40141078 | R189: 1.583594182 | S189: 1.789461425 | T189: 2.022091411 | U189: 2.284963294 | V189: 2.582008522 | W189: 2.91766963
D191: =Asset6.Name -> RetireAustralia
D192: Opening valuation | G192: NZ$m | L192: 0 | M192: =_xlfn.XLOOKUP($D191,Assets.list,L$113:L$122) -> 454.0785851 | N192: 404.2427476 | O192: 0 | P192: 0 | Q192: 0 | R192: 0 | S192: 0 | T192: 0 | U192: 0 | V192: 0 | W192: 0
D193: Capital contributions | G193: NZ$m | L193: 0 | M193: =_xlfn.XLOOKUP($D191,Assets.list,M$61:M$70) -> 0 | N193: 0 | O193: 0 | P193: 0 | Q193: 0 | R193: 0 | S193: 0 | T193: 0 | U193: 0 | V193: 0 | W193: 0
D194: Distributions | G194: NZ$m | L194: 0 | M194: =-_xlfn.XLOOKUP($D191,Assets.list,M$74:M$83) -> -5.208618462 | N194: 0 | O194: 0 | P194: 0 | Q194: 0 | R194: 0 | S194: 0 | T194: 0 | U194: 0 | V194: 0 | W194: 0
D195: Hurdle | G195: NZ$m | L195: 0 | M195: =_xlfn.XLOOKUP($D191,Assets.list,M$125:M$134) -> 54.2790244 | N195: =_xlfn.XLOOKUP($D191,Assets.list,N$125:N$134) -> 48.50912971 | O195: 0 | P195: 0 | Q195: 0 | R195: 0 | S195: 0 | T195: 0 | U195: 0 | V195: 0 | W195: 0
D196: FX Contracts | G196: NZ$m | L196: 0 | M196: =-_xlfn.XLOOKUP($D191,Assets.list,M$98:M$107) -> 0 | N196: 0 | O196: 0 | P196: 0 | Q196: 0 | R196: 0 | S196: 0 | T196: 0 | U196: 0 | V196: 0 | W196: 0
D197: Benchmark valuation | G197: NZ$m | L197: 0 | M197: =SUM(M192:M196) -> 503.1489911 | N197: =SUM(N192:N196) -> 452.7518773 | O197: 0 | P197: 0 | Q197: 0 | R197: 0 | S197: 0 | T197: 0 | U197: 0 | V197: 0 | W197: 0
D198: Closing valuation | G198: NZ$m | L198: 0 | M198: =_xlfn.XLOOKUP($D191,Assets.list,M$113:M$122) -> 404.2427476 | N198: 328 | O198: 0 | P198: 0 | Q198: 0 | R198: 0 | S198: 0 | T198: 0 | U198: 0 | V198: 0 | W198: 0
D199: Outperformance | G199: NZ$m | L199: 0 | M199: =M198-M197 -> -98.90624348 | N199: =N198-N197 -> -124.7518773 | O199: 0 | P199: 0 | Q199: 0 | R199: 0 | S199: 0 | T199: 0 | U199: 0 | V199: 0 | W199: 0
D200: Fee | G200: NZ$m | L200: 0 | M200: =M199*fee.rate -> -19.7812487 | N200: -24.95037546 | O200: 0 | P200: 0 | Q200: 0 | R200: 0 | S200: 0 | T200: 0 | U200: 0 | V200: 0 | W200: 0
D202: =Asset7.Name -> Qscan
D203: Opening valuation | G203: NZ$m | L203: 0 | M203: =_xlfn.XLOOKUP($D202,Assets.list,L$113:L$122) -> 407.7752526 | N203: 450.0032058 | O203: 508.5036226 | P203: 574.6090935 | Q203: 649.3082756 | R203: 733.7183515 | S203: 829.1017372 | T203: 936.884963 | U203: 1058.680008 | V203: 1196.308409 | W203: 1351.828502
D204: Capital contributions | G204: NZ$m | L204: 0 | M204: =_xlfn.XLOOKUP($D202,Assets.list,M$61:M$70) -> 0 | N204: 0 | O204: 0 | P204: 0 | Q204: 0 | R204: 0 | S204: 0 | T204: 0 | U204: 0 | V204: 0 | W204: 0
D205: Distributions | G205: NZ$m | L205: 0 | M205: =-_xlfn.XLOOKUP($D202,Assets.list,M$74:M$83) -> -43.55823726 | N205: 0 | O205: 0 | P205: 0 | Q205: 0 | R205: 0 | S205: 0 | T205: 0 | U205: 0 | V205: 0 | W205: 0
D206: Hurdle | G206: NZ$m | L206: 0 | M206: =_xlfn.XLOOKUP($D202,Assets.list,M$125:M$134) -> 48.91870979 | N206: 54.0003847 | O206: 61.02043471 | P206: 68.95309122 | Q206: 77.91699308 | R206: 88.04620218 | S206: 99.49220846 | T206: 112.4261956 | U206: 127.041601 | V206: 143.5570091 | W206: 162.2194203
D207: FX Contracts | G207: NZ$m | L207: 0 | M207: =-_xlfn.XLOOKUP($D202,Assets.list,M$98:M$107) -> 0 | N207: 0 | O207: 0 | P207: 0 | Q207: 0 | R207: 0 | S207: 0 | T207: 0 | U207: 0 | V207: 0 | W207: 0
D208: Benchmark valuation | G208: NZ$m | L208: 0 | M208: =SUM(M203:M207) -> 413.1357251 | N208: =SUM(N203:N207) -> 504.0035905 | O208: 569.5240573 | P208: 643.5621847 | Q208: 727.2252687 | R208: 821.7645537 | S208: 928.5939456 | T208: 1049.311159 | U208: 1185.721609 | V208: 1339.865418 | W208: 1514.047923
D209: Closing valuation | G209: NZ$m | L209: 0 | M209: =_xlfn.XLOOKUP($D202,Assets.list,M$113:M$122) -> 450.0032058 | N209: 508.5036226 | O209: 574.6090935 | P209: 649.3082756 | Q209: 733.7183515 | R209: 829.1017372 | S209: 936.884963 | T209: 1058.680008 | U209: 1196.308409 | V209: 1351.828502 | W209: 1527.566208
D210: Outperformance | G210: NZ$m | L210: 0 | M210: =M209-M208 -> 36.86748068 | N210: =N209-N208 -> 4.500032058 | O210: 5.085036226 | P210: 5.746090935 | Q210: 6.493082756 | R210: 7.337183515 | S210: 8.291017372 | T210: 9.36884963 | U210: 10.58680008 | V210: 11.96308409 | W210: 13.51828502
D211: Fee | G211: NZ$m | L211: 0 | M211: =M210*fee.rate -> 7.373496136 | N211: 0.9000064116 | O211: 1.017007245 | P211: 1.149218187 | Q211: 1.298616551 | R211: 1.467436703 | S211: 1.658203474 | T211: 1.873769926 | U211: 2.117360016 | V211: 2.392616819 | W211: 2.703657005
D213: =Asset8.Name -> Mint Renewables
D214: Opening valuation | G214: NZ$m | L214: 0 | M214: =_xlfn.XLOOKUP($D213,Assets.list,L$113:L$122) -> 0 | N214: 22.61005344 | O214: 25.54936039 | P214: 28.87077724 | Q214: 32.62397828 | R214: 36.86509546 | S214: 41.65755787 | T214: 47.07304039 | U214: 53.19253564 | V214: 60.10756527 | W214: 67.92154876
D215: Capital contributions | G215: NZ$m | L215: 0 | M215: =_xlfn.XLOOKUP($D213,Assets.list,M$61:M$70) -> 21.81593363 | N215: 0 | O215: 0 | P215: 0 | Q215: 0 | R215: 0 | S215: 0 | T215: 0 | U215: 0 | V215: 0 | W215: 0
D216: Distributions | G216: NZ$m | L216: 0 | M216: =-_xlfn.XLOOKUP($D213,Assets.list,M$74:M$83) -> 0 | N216: 0 | O216: 0 | P216: 0 | Q216: 0 | R216: 0 | S216: 0 | T216: 0 | U216: 0 | V216: 0 | W216: 0
D217: Hurdle | G217: NZ$m | L217: 0 | M217: =_xlfn.XLOOKUP($D213,Assets.list,M$125:M$134) -> 3.101451982 | N217: 2.713206413 | O217: 3.065923247 | P217: 3.464493269 | Q217: 3.914877394 | R217: 4.423811455 | S217: 4.998906944 | T217: 5.648764847 | U217: 6.383104277 | V217: 7.212907833 | W217: 8.150585851
D218: FX Contracts | G218: NZ$m | L218: 0 | M218: =-_xlfn.XLOOKUP($D213,Assets.list,M$98:M$107) -> 0 | N218: 0 | O218: 0 | P218: 0 | Q218: 0 | R218: 0 | S218: 0 | T218: 0 | U218: 0 | V218: 0 | W218: 0
D219: Benchmark valuation | G219: NZ$m | L219: 0 | M219: =SUM(M214:M218) -> 24.91738561 | N219: =SUM(N214:N218) -> 25.32325985 | O219: 28.61528364 | P219: 32.33527051 | Q219: 36.53885567 | R219: 41.28890691 | S219: 46.65646481 | T219: 52.72180524 | U219: 59.57563992 | V219: 67.32047311 | W219: 76.07213461
D220: Closing valuation | G220: NZ$m | L220: 0 | M220: =_xlfn.XLOOKUP($D213,Assets.list,M$113:M$122) -> 22.61005344 | N220: 25.54936039 | O220: 28.87077724 | P220: 32.62397828 | Q220: 36.86509546 | R220: 41.65755787 | S220: 47.07304039 | T220: 53.19253564 | U220: 60.10756527 | V220: 67.92154876 | W220: 76.7513501
D221: Outperformance | G221: NZ$m | L221: 0 | M221: =M220-M219 -> -2.30733217 | N221: =N220-N219 -> 0.2261005344 | O221: 0.2554936039 | P221: 0.2887077724 | Q221: 0.3262397828 | R221: 0.3686509546 | S221: 0.4165755787 | T221: 0.4707304039 | U221: 0.5319253564 | V221: 0.6010756527 | W221: 0.6792154876
D222: Fee | G222: NZ$m | L222: 0 | M222: =M221*fee.rate -> -0.4614664341 | N222: 0.04522010688 | O222: 0.05109872078 | P222: 0.05774155448 | Q222: 0.06524795656 | R222: 0.07373019091 | S222: 0.08331511573 | T222: 0.09414608078 | U222: 0.1063850713 | V222: 0.1202151305 | W222: 0.1358430975
D224: =Asset9.Name -> Asset 9
D225: Opening valuation | G225: NZ$m | L225: 0 | M225: =_xlfn.XLOOKUP($D224,Assets.list,L$113:L$122) -> 0 | N225: 0 | O225: 0 | P225: 0 | Q225: 0 | R225: 0 | S225: 0 | T225: 0 | U225: 0 | V225: 0 | W225: 0
D226: Capital contributions | G226: NZ$m | L226: 0 | M226: =_xlfn.XLOOKUP($D224,Assets.list,M$61:M$70) -> 0 | N226: 0 | O226: 0 | P226: 0 | Q226: 0 | R226: 0 | S226: 0 | T226: 0 | U226: 0 | V226: 0 | W226: 0
D227: Distributions | G227: NZ$m | L227: 0 | M227: =-_xlfn.XLOOKUP($D224,Assets.list,M$74:M$83) -> 0 | N227: 0 | O227: 0 | P227: 0 | Q227: 0 | R227: 0 | S227: 0 | T227: 0 | U227: 0 | V227: 0 | W227: 0
D228: Hurdle | G228: NZ$m | L228: 0 | M228: =_xlfn.XLOOKUP($D224,Assets.list,M$125:M$134) -> 0 | N228: 0 | O228: 0 | P228: 0 | Q228: 0 | R228: 0 | S228: 0 | T228: 0 | U228: 0 | V228: 0 | W228: 0
D229: FX Contracts | G229: NZ$m | L229: 0 | M229: =-_xlfn.XLOOKUP($D224,Assets.list,M$98:M$107) -> 0 | N229: 0 | O229: 0 | P229: 0 | Q229: 0 | R229: 0 | S229: 0 | T229: 0 | U229: 0 | V229: 0 | W229: 0
D230: Benchmark valuation | G230: NZ$m | L230: 0 | M230: =SUM(M225:M229) -> 0 | N230: =SUM(N225:N229) -> 0 | O230: 0 | P230: 0 | Q230: 0 | R230: 0 | S230: 0 | T230: 0 | U230: 0 | V230: 0 | W230: 0
D231: Closing valuation | G231: NZ$m | L231: 0 | M231: =_xlfn.XLOOKUP($D224,Assets.list,M$113:M$122) -> 0 | N231: 0 | O231: 0 | P231: 0 | Q231: 0 | R231: 0 | S231: 0 | T231: 0 | U231: 0 | V231: 0 | W231: 0
... 46 more rows

Sheet Fees History
B2: Infratil fees history
L4: Period Start | M4: 2020-04-01 | N4: =M5+1 -> 2021-04-01 | O4: =N5+1 -> 2022-04-01 | P4: =O5+1 -> 2023-04-01 | Q4: 2024-04-01 | R4: 2025-04-01
L5: Period End | M5: =EOMONTH(M4,Months_Year -1) -> 2021-03-31 | N5: 2022-03-31 | O5: 2023-03-31 | P5: 2024-03-31 | Q5: =EOMONTH(Q4,Months_Year -1) -> 2025-03-31 | R5: 2026-03-31
L6: Financial year | M6: =YEAR(M5) -> 2021 | N6: 2022 | O6: 2023 | P6: 2024 | Q6: =YEAR(Q5) -> 2025 | R6: 2026
L7: Period | M7: 1 | N7: =M7+1 -> 2 | O7: =N7+1 -> 3 | P7: =O7+1 -> 4 | Q7: 5 | R7: 6
B9: Fees history
A10: Assumptions
B11: =Header_Number -> 1 | C11: Fee history
H13: 5-year total
D14: Management fees | G14: NZ$m | H14: =SUM(M14:Q14) -> 362.3613588 | M14: 45.69800978 | N14: 57.30789543 | O14: 63.21764687 | P14: 86.83826375 | Q14: 109.2995429 | R14: 0
D15: Incentive fees (accrual) | G15: NZ$m | H15: =SUM(M15:Q15) -> 1088.597064 | M15: =M34 -> 223.0615146 | N15: =N34 -> 221.2008195 | O15: 163.9338028 | P15: 129.7585054 | Q15: 350.6424219 | R15: 0
D16: Incentive fees (paid - cash) | G16: NZ$m | H16: =SUM(M16:Q16) -> 866.5614297 | M16: =M18-M17 -> 116.0425954 | N16: 270.763867 | O16: 270.763867 | P16: =P18-P17 -> 102.2382131 | Q16: =Q18-Q17 -> 106.7528872 | R16: 121.9704048
D17: Incentive fees (paid - Scrip) | G17: NZ$m | H17: =SUM(M17:Q17) -> 110 | M17: 0 | N17: 0 | O17: 0 | P17: 60 | Q17: 50 | R17: 80
D18: Total fees paid | G18: NZ$m | H18: 976.5614297 | M18: 116.0425954 | N18: 270.763867 | O18: 270.763867 | P18: =SUM(M24:O24,M25:O25,M26:O26,N27:O27,N28:O28,M32,M33)/3 -> 162.2382131 | Q18: =SUM(N24:P24,N25:P25,N26:P26,O27:P27,O28:P28)/3+P29+P30 -> 156.7528872 | R18: =SUM(O24:Q24,O25:Q25,O26:Q26,O27:Q27,O28:Q28,Q29,Q30,Q31)/3 -> 201.9704048
B20: =Header_Number -> 2 | C20: Historic incentive fee build-up
D23: Incentive fees accrued
D24: CDC | G24: NZ$m | M24: =M46 -> 140.3097071 | N24: =N46 -> 84.75139053 | O24: =O46 -> 38.61793077 | P24: =P46 -> 60.14523072 | Q24: =Q46 -> 359.9123962 | R24: 0
D25: Longroad | G25: NZ$m | M25: =M57 -> -8.037291025 | N25: =N57 -> 14.06384116 | O25: =O57 -> 136.7323444 | P25: =P57 -> 19.0605429 | Q25: =Q57 -> -25.19961796 | R25: 0
D26: RetireAustralia | G26: NZ$m | M26: =M68 -> 3.156199993 | N26: =N68 -> 0.9040902551 | O26: =O68 -> -5.216058745 | P26: =P68 -> -5.935012148 | Q26: =Q68 -> -19.7812487 | R26: 0
D27: Galileo | G27: NZ$m | H27: Galileo's negative initial fee in FY22 was extinguished and not offset | M27: 0 | N27: 0 | O27: =O79 -> -0.5177857171 | P27: =P79 -> 23.12007466 | Q27: =Q79 -> 2.400248953 | R27: 0
D28: Qscan | G28: NZ$m | M28: 0 | N28: 0 | O28: =O90 -> -5.682627907 | P28: =P90 -> -5.055846528 | Q28: =Q90 -> 7.373496136 | R28: 0
D29: Kao Data | G29: NZ$m | M29: 0 | N29: 0 | O29: 0 | P29: =P101 -> 15.57815197 | Q29: =Q101 -> -3.525757671 | R29: 0
D30: Gurin Energy | G30: NZ$m | M30: 0 | N30: 0 | O30: 0 | P30: =P112 -> 22.84536382 | Q30: =Q112 -> 29.92437136 | R30: 0
D31: Mint Renewables | G31: NZ$m | M31: 0 | N31: 0 | O31: 0 | P31: 0 | Q31: =Q123 -> -0.4614664341 | R31: 0
D32: Tilt Renewables | G32: NZ$m | M32: =M134 -> 86.0507082 | N32: =N134 -> 122.0764288 | O32: 0 | P32: 0 | Q32: 0 | R32: 0
D33: ASIP | G33: NZ$m | M33: =M145 -> 1.582190306 | N33: =N145 -> -0.5949312141 | O33: 0 | P33: 0 | Q33: 0 | R33: 0
D34: Total incentive fee | G34: NZ$m | M34: =SUM(M24:M33) -> 223.0615146 | N34: 221.2008195 | O34: 163.9338028 | P34: 129.7585054 | Q34: 350.6424219 | R34: 0
D35: check | M35: =ROUND(M34-M15,2) -> 0 | N35: 0 | O35: 0 | P35: 0 | Q35: =ROUND(Q34-Q15,2) -> 0
D37: CDC | M37: annual | N37: annual | O37: annual | P37: annual | Q37: annual
D38: Prior year incentive fee valuation | G38: NZ$m | M38: 1515.617659 | N38: =M44 -> 2401.350468 | O38: =N44 -> 3117.283466 | P38: =O44 -> 3660.266508 | Q38: =P44 -> 4399.335223
D39: Capital | G39: NZ$m | M39: 8.39101235 | N39: 17.32616213 | O39: 14.24239378 | P39: 34.69020545 | Q39: 494.2093518
D40: FX | G40: NZ$m | M40: 0 | N40: 0 | O40: 0 | P40: 0 | Q40: -
D41: Distributions | G41: NZ$m | M41: -5.82669759 | N41: -13.45973371 | O41: -37.07762927 | P41: -36.49193383 | Q41: -24.13363644
D42: Hurdle | G42: NZ$m | M42: 181.619959 | N42: 288.3096168 | O42: 372.7286238 | P42: 440.14429 | Q42: 543.2690324
D43: Benchmark valuation | G43: NZ$m | M43: =SUM(M38:M42) -> 1699.801933 | N43: =SUM(N38:N42) -> 2693.526514 | O43: 3467.176854 | P43: 4098.60907 | Q43: 5412.679971
D44: Current year incentive fee valuation | G44: NZ$m | M44: 2401.350468 | N44: 3117.283466 | O44: 3660.266508 | P44: 4399.335223 | Q44: 7212.241952
D45: Outperformance | G45: NZ$m | M45: =M44-M43 -> 701.5485354 | N45: =N44-N43 -> 423.7569526 | O45: 193.0896538 | P45: 300.7261536 | Q45: 1799.561981
D46: Fee | G46: NZ$m | M46: =M45*0.2 -> 140.3097071 | N46: =N45*0.2 -> 84.75139053 | O46: 38.61793077 | P46: 60.14523072 | Q46: 359.9123962
D48: Longroad | M48: annual | N48: annual | O48: annual | P48: annual | Q48: annual
D49: Prior year incentive fee valuation | G49: NZ$m | M49: 162.3758829 | N49: =M55 -> 136.2442115 | O49: =N55 -> 227.4047217 | P49: =O55 -> 1185.825307 | Q49: =P55 -> 1503.146056
D50: Capital | G50: NZ$m | M50: 23.70567295 | N50: 15.43799272 | O50: 243.6875705 | P50: 94.33704374 | Q50: 163.3539862
D51: FX | G51: NZ$m | M51: 0 | N51: 0 | O51: 0 | P51: -1.955641834 | Q51: 2.572285306
D52: Distributions | G52: NZ$m | M52: -28.16404255 | N52: -10.60998085 | O52: -8.417160285 | P52: -18.21979771 | Q52: -
D53: Hurdle | G53: NZ$m | M53: 18.51315334 | N53: 16.01329252 | O53: 39.48845292 | P53: 147.8564307 | Q53: 185.1560294
D54: Benchmark valuation | G54: NZ$m | M54: =SUM(M49:M53) -> 176.4306666 | N54: =SUM(N49:N53) -> 157.0855159 | O54: =SUM(O49:O53) -> 502.1635849 | P54: =SUM(P49:P53) -> 1407.843342 | Q54: =SUM(Q49:Q53) -> 1854.228357
D55: Current year incentive fee valuation | G55: NZ$m | M55: 136.2442115 | N55: 227.4047217 | O55: 1185.825307 | P55: 1503.146056 | Q55: 1728.230267
D56: Outperformance | G56: NZ$m | M56: =M55-M54 -> -40.18645513 | N56: =N55-N54 -> 70.31920582 | O56: =O55-O54 -> 683.6617219 | P56: =P55-P54 -> 95.3027145 | Q56: =Q55-Q54 -> -125.9980898
D57: Fee | G57: NZ$m | M57: =M56*0.2 -> -8.037291025 | N57: =N56*0.2 -> 14.06384116 | O57: =O56*0.2 -> 136.7323444 | P57: =P56*0.2 -> 19.0605429 | Q57: =Q56*0.2 -> -25.19961796
D59: RetireAustralia | M59: annual | N59: annual | O59: annual | P59: annual | Q59: annual
D60: Prior year incentive fee valuation | G60: NZ$m | M60: 308.2135524 | N60: =M66 -> 360.9801786 | O60: =N66 -> 408.8182513 | P60: =O66 -> 431.7961478 | Q60: =P66 -> 454.0785851
D61: Capital | G61: NZ$m | M61: 0 | N61: 0 | O61: 0 | P61: 0 | Q61: -
D62: FX | G62: NZ$m | M62: 0 | N62: 0 | O62: 0 | P62: 0 | Q62: -
D63: Distributions | G63: NZ$m | M63: 0 | N63: 0 | O63: 0 | P63: 0 | Q63: -5.208618462
D64: Hurdle | G64: NZ$m | M64: 36.98562628 | N64: 43.31762143 | O64: 49.05819016 | P64: 51.95749811 | Q64: 54.2790244
D65: Benchmark valuation | G65: NZ$m | M65: =SUM(M60:M64) -> 345.1991786 | N65: =SUM(N60:N64) -> 404.2978 | O65: =SUM(O60:O64) -> 457.8764415 | P65: =SUM(P60:P64) -> 483.7536459 | Q65: =SUM(Q60:Q64) -> 503.1489911
D66: Current year incentive fee valuation | G66: NZ$m | M66: 360.9801786 | N66: 408.8182513 | O66: 431.7961478 | P66: 454.0785851 | Q66: 404.2427476
D67: Outperformance | G67: NZ$m | M67: =M66-M65 -> 15.78099997 | N67: =N66-N65 -> 4.520451275 | O67: =O66-O65 -> -26.08029373 | P67: =P66-P65 -> -29.67506074 | Q67: =Q66-Q65 -> -98.90624348
D68: Fee | G68: NZ$m | M68: =M67*0.2 -> 3.156199993 | N68: =N67*0.2 -> 0.9040902551 | O68: =O67*0.2 -> -5.216058745 | P68: =P67*0.2 -> -5.935012148 | Q68: =Q67*0.2 -> -19.7812487
D70: Galileo | N70: initial | O70: annual | P70: annual | Q70: annual
D71: Prior year incentive fee valuation | G71: NZ$m | M71: 0 | N71: 0 | O71: =N77 -> 26.13619612 | P71: =O77 -> 71.16125946 | Q71: =P77 -> 237.1071156
D72: Capital | G72: NZ$m | M72: 0 | N72: 28.15903038 | O72: 42.06904628 | P72: 39.11994454 | Q72: 41.88910324
D73: FX | G73: NZ$m | M73: 0 | N73: 0 | O73: 0 | P73: 0 | Q73: -
D74: Distributions | G74: NZ$m | M74: 0 | N74: 0 | O74: 0 | P74: 0 | Q74: -
D75: Hurdle | G75: NZ$m | M75: 0 | N75: 3.226417412 | O75: 5.544945642 | P75: 11.22553835 | Q75: 30.09181196
D76: Benchmark valuation | G76: NZ$m | M76: 0 | N76: =SUM(N71:N75) -> 31.38544779 | O76: =SUM(O71:O75) -> 73.75018804 | P76: =SUM(P71:P75) -> 121.5067423 | Q76: =SUM(Q71:Q75) -> 309.0880308
D77: Current year incentive fee valuation | G77: NZ$m | M77: 0 | N77: 26.13619612 | O77: 71.16125946 | P77: 237.1071156 | Q77: 321.0892756
D78: Outperformance | G78: NZ$m | M78: 0 | N78: =N77-N76 -> -5.249251669 | O78: =O77-O76 -> -2.588928585 | P78: =P77-P76 -> 115.6003733 | Q78: =Q77-Q76 -> 12.00124477
D79: Fee | G79: NZ$m | M79: 0 | N79: =N78*0.2 -> -1.049850334 | O79: =O78*0.2 -> -0.5177857171 | P79: =P78*0.2 -> 23.12007466 | Q79: =Q78*0.2 -> 2.400248953
D81: Qscan | O81: initial | P81: annual | Q81: annual
D82: Prior year incentive fee valuation | G82: NZ$m | M82: 0 | N82: 0 | P82: =O88 -> 370.556629 | Q82: =P88 -> 407.7752526
D83: Capital | G83: NZ$m | M83: 0 | N83: 0 | O83: 309.7167954 | P83: 17.87984237 | Q83: -
D84: FX | G84: NZ$m | M84: 0 | N84: 0 | O84: 0 | P84: 0 | Q84: -
D85: Distributions | G85: NZ$m | M85: 0 | N85: 0 | O85: -2.439598802 | P85: 0 | Q85: -43.57255777
D86: Hurdle | G86: NZ$m | M86: 0 | N86: 0 | O86: 91.69257199 | P86: 44.61801384 | Q86: 48.93303031
D87: Benchmark valuation | G87: NZ$m | M87: 0 | N87: 0 | O87: =SUM(O82:O86) -> 398.9697685 | P87: =SUM(P82:P86) -> 433.0544852 | Q87: =SUM(Q82:Q86) -> 413.1357251
D88: Current year incentive fee valuation | G88: NZ$m | M88: 0 | N88: 0 | O88: 370.556629 | P88: 407.7752526 | Q88: 450.0032058
D89: Outperformance | G89: NZ$m | M89: 0 | N89: 0 | O89: =O88-O87 -> -28.41313953 | P89: =P88-P87 -> -25.27923264 | Q89: =Q88-Q87 -> 36.86748068
D90: Fee | G90: NZ$m | M90: 0 | N90: 0 | O90: =O89*0.2 -> -5.682627907 | P90: =P89*0.2 -> -5.055846528 | Q90: =Q89*0.2 -> 7.373496136
D92: Kao Data | P92: initial | Q92: annual
D93: Prior year incentive fee valuation | G93: NZ$m | M93: 0 | N93: 0 | O93: 0 | P93: 0 | Q93: =P99 -> 550.6819088
D94: Capital | G94: NZ$m | M94: 0 | N94: 0 | O94: 0 | P94: 392.7912869 | Q94: 82.93550939
D95: FX | G95: NZ$m | M95: 0 | N95: 0 | O95: 0 | P95: 0.32531416 | Q95: 8.31664385
D96: Distributions | G96: NZ$m | M96: 0 | N96: 0 | O96: 0 | P96: 0 | Q96: -
D97: Hurdle | G97: NZ$m | M97: 0 | N97: 0 | O97: 0 | P97: 79.67454787 | Q97: 70.23246806
D98: Benchmark valuation | G98: NZ$m | M98: 0 | N98: 0 | O98: 0 | P98: =SUM(P93:P97) -> 472.7911489 | Q98: =SUM(Q93:Q97) -> 712.1665301
D99: Current year incentive fee valuation | G99: NZ$m | M99: 0 | N99: 0 | O99: 0 | P99: 550.6819088 | Q99: 694.5377417
D100: Outperformance | G100: NZ$m | M100: 0 | N100: 0 | O100: 0 | P100: =P99-P98 -> 77.89075985 | Q100: =Q99-Q98 -> -17.62878835
D101: Fee | G101: NZ$m | M101: 0 | N101: 0 | O101: 0 | P101: =P100*0.2 -> 15.57815197 | Q101: =Q100*0.2 -> -3.525757671
D103: Gurin Energy | P103: initial | Q103: annual
D104: Prior year incentive fee valuation | G104: NZ$m | M104: 0 | N104: 0 | O104: 0 | P104: 0 | Q104: =P110 -> 233.5079703
D105: Capital | G105: NZ$m | M105: 0 | N105: 0 | O105: 0 | P105: 104.8906988 | Q105: 67.49368115
D106: FX | G106: NZ$m | M106: 0 | N106: 0 | O106: 0 | P106: 1.791633316 | Q106: 4.266872996
D107: Distributions | G107: NZ$m | M107: 0 | N107: 0 | O107: 0 | P107: -0.5960956552 | Q107: -0.5631846966
D108: Hurdle | G108: NZ$m | M108: 0 | N108: 0 | O108: 0 | P108: 13.1949147 | Q108: 31.2967878
D109: Benchmark valuation | G109: NZ$m | M109: 0 | N109: 0 | O109: 0 | P109: =SUM(P104:P108) -> 119.2811512 | Q109: =SUM(Q104:Q108) -> 336.0021275
D110: Current year incentive fee valuation | G110: NZ$m | M110: 0 | N110: 0 | O110: 0 | P110: 233.5079703 | Q110: 485.6239843
D111: Outperformance | G111: NZ$m | M111: 0 | N111: 0 | O111: 0 | P111: =P110-P109 -> 114.2268191 | Q111: =Q110-Q109 -> 149.6218568
D112: Fee | G112: NZ$m | M112: 0 | N112: 0 | O112: 0 | P112: =P111*0.2 -> 22.84536382 | Q112: =Q111*0.2 -> 29.92437136
D114: Mint Renewables | Q114: initial
D115: Prior year incentive fee valuation | G115: NZ$m | M115: 0 | N115: 0 | O115: 0 | P115: 0 | Q115: 0
D116: Capital | G116: NZ$m | M116: 0 | N116: 0 | O116: 0 | P116: 0 | Q116: 21.81593363
D117: FX | G117: NZ$m | M117: 0 | N117: 0 | O117: 0 | P117: 0 | Q117: 0
D118: Distributions | G118: NZ$m | M118: 0 | N118: 0 | O118: 0 | P118: 0 | Q118: 0
D119: Hurdle | G119: NZ$m | M119: 0 | N119: 0 | O119: 0 | P119: 0 | Q119: 3.101451982
D120: Benchmark valuation | G120: NZ$m | M120: 0 | N120: 0 | O120: 0 | P120: 0 | Q120: =SUM(Q115:Q119) -> 24.91738561
D121: Current year incentive fee valuation | G121: NZ$m | M121: 0 | N121: 0 | O121: 0 | P121: 0 | Q121: 22.61005344
D122: Outperformance | G122: NZ$m | M122: 0 | N122: 0 | O122: 0 | P122: 0 | Q122: =Q121-Q120 -> -2.30733217
D123: Fee | G123: NZ$m | M123: 0 | N123: 0 | O123: 0 | P123: 0 | Q123: =Q122*0.2 -> -0.4614664341
D125: Tilt Renewables | M125: annual | N125: realised
D126: Prior year incentive fee valuation | G126: NZ$m | M126: 966.471922 | N126: =M132 -> 1317.463573 | O126: 0 | P126: 0 | Q126: 0
D127: Capital | G127: NZ$m | M127: -179.6462135 | N127: 0 | O127: 0 | P127: 0 | Q127: 0
D128: FX | G128: NZ$m | M128: 0 | N128: 0 | O128: 0 | P128: 0 | Q128: 0
D129: Distributions | G129: NZ$m | M129: 0 | N129: -22.29286719 | O129: 0 | P129: 0 | Q129: 0
D130: Hurdle | G130: NZ$m | M130: 100.3843237 | N130: 53.67988327 | O130: 0 | P130: 0 | Q130: 0
D131: Benchmark valuation | G131: NZ$m | M131: =SUM(M126:M130) -> 887.2100321 | N131: =SUM(N126:N130) -> 1348.850589 | O131: 0 | P131: 0 | Q131: 0
D132: Current year incentive fee valuation | G132: NZ$m | M132: 1317.463573 | N132: 1959.232733 | O132: 0 | P132: 0 | Q132: 0
D133: Outperformance | G133: NZ$m | M133: =M132-M131 -> 430.253541 | N133: =N132-N131 -> 610.3821439 | O133: 0 | P133: 0 | Q133: 0
D134: Fee | G134: NZ$m | M134: =M133*0.2 -> 86.0507082 | N134: =N133*0.2 -> 122.0764288 | O134: 0 | P134: 0 | Q134: 0
D136: ASIP | M136: annual | N136: realised
D137: Prior year incentive fee valuation | G137: NZ$m | M137: 33.36817393 | N137: =M143 -> 45.55203566 | O137: 0 | P137: 0 | Q137: 0
D138: Capital | G138: NZ$m | M138: 0.26872933 | N138: 0 | O138: 0 | P138: 0 | Q138: 0
D139: FX | G139: NZ$m | M139: 0 | N139: 0 | O139: 0 | P139: 0 | Q139: 0
D140: Distributions | G140: NZ$m | M140: 0 | N140: 0 | O140: 0 | P140: 0 | Q140: 0
D141: Hurdle | G141: NZ$m | M141: 4.004180872 | N141: 1.692289325 | O141: 0 | P141: 0 | Q141: 0
D142: Benchmark valuation | G142: NZ$m | M142: =SUM(M137:M141) -> 37.64108413 | N142: =SUM(N137:N141) -> 47.24432498 | O142: 0 | P142: 0 | Q142: 0
D143: Current year incentive fee valuation | G143: NZ$m | M143: 45.55203566 | N143: 44.26966891 | O143: 0 | P143: 0 | Q143: 0
D144: Outperformance | G144: NZ$m | M144: =M143-M142 -> 7.910951528 | N144: =N143-N142 -> -2.974656071 | O144: 0 | P144: 0 | Q144: 0
D145: Fee | G145: NZ$m | M145: =M144*0.2 -> 1.582190306 | N145: =N144*0.2 -> -0.5949312141 | O145: 0 | P145: 0 | Q145: 0
B147: =Header_Number -> 3 | C147: Notes
C149: The Galileo initial incentive fee calculated in March 2022, generated a negative initial fee of $1.0 million. Under the management agreement terms at that time since there was no offsetting positive fee in the FY22 initial fee bucket the negative fee was extinguished and not carried forward.
C150: Subsequently in March 2023, the Infratil Management Agreement was amended allowing for the offsetting of negative incentive fees between buckets. As a result the Qscan negative initial incentive fee in March 23 was offset against the postive annual incentive fee bucket.
B155: =" " ->  | C155: =" " ->  | D155: =" " ->  | E155: END OF SHEET | F155: =" " -> 
